{"text_format":"3","workbook":"xlsx","n_sheets":3,"sheets":["Sayfa1","Sayfa2","Sayfa3"],"read":"whole","date_system":"1900"}

{"sheet":"Sayfa1","index":0,"n_rows":36,"n_cols":7,"rows_kept":36,"merged":[[0,0,0,6],[1,0,2,0],[1,1,1,3],[1,4,1,6],[15,4,15,6],[16,4,16,6],[17,0,17,6],[18,0,18,6],[19,0,19,6],[20,0,20,6],[21,0,21,6],[22,0,22,6],[23,0,23,6],[24,0,24,6],[25,0,25,6],[26,0,26,6],[27,0,27,6],[28,0,28,6],[29,0,29,6],[30,0,30,6],[31,0,31,6],[32,0,32,6],[33,0,33,6],[34,0,34,6],[35,0,35,6]]}
["YALOVA ÜNİVERSİTESİ\n2021-2022 EĞİTİM-ÖĞRETİM YILI ÖĞRENİM ÜCRETİ MİKTARLARI (”),(”’),(””)"]
["YÜKSEKÖĞRETİM PROGRAMI","BİRİNCİ ÖĞRETİM",null,null,"İKİNCİ ÖĞRETİM"]
[null,"1.TAKSİT","2.TAKSİT","TOPLAM","1.TAKSİT","2.TAKSİT","TOPLAM"]
["Tıp Fakültesi",{"$f":"961/2","v":{"v":480.5,"d":"480.50"}},{"$f":"961/2","v":{"v":480.5,"d":"480.50"}},{"$f":"SUM(B4:C4)","v":{"v":961,"d":"961.00"}}]
["Yalova İktisadi ve İdari Bilimler Fakültesi",{"$f":"509/2","v":{"v":254.5,"d":"254.50"}},{"$f":"509/2","v":{"v":254.5,"d":"254.50"}},{"v":509,"d":"509.00"},{"$f":"1879/2","v":{"v":939.5,"d":"939.50"}},{"$f":"1879/2","v":{"v":939.5,"d":"939.50"}},{"$f":"SUM(E5:F5)","v":{"v":1879,"d":"1,879.00"}}]
["Yalova İktisadi ve İdari Bilimler Fakültesi (İngilizce)",{"$f":"(509*1.5)/2","v":381.75},{"v":381,"d":"381.00"},762.75]
["Mühendislik Fakültesi",{"$f":"630/2","v":{"v":315,"d":"315.00"}},{"$f":"630/2","v":{"v":315,"d":"315.00"}},{"v":630,"d":"630.00"}]
["İslami İlimler Fakültesi",{"$f":"463/2","v":{"v":231.5,"d":"231.50"}},{"v":231.5,"d":"231.50"},{"v":463,"d":"463.00"}]
["İslami İlimler Fakültesi(Arapça)",347.25,347.25,{"v":694.5,"d":"694.50"}]
["Hukuk Fakültesi",{"$f":"509/2","v":{"v":254.5,"d":"254.50"}},{"$f":"509/2","v":{"v":254.5,"d":"254.50"}},{"v":509,"d":"509.00"}]
["Sanat ve Tasarım Fakültesi",{"$f":"513/2","v":{"v":256.5,"d":"256.50"}},{"$f":"513/2","v":{"v":256.5,"d":"256.50"}},{"v":513,"d":"513.00"}]
["Spor Bilimleri Fakültesi",{"$f":"463/2","v":{"v":231.5,"d":"231.50"}},{"$f":"463/2","v":{"v":231.5,"d":"231.50"}},{"v":463,"d":"463.00"}]
["Sağlık Bilimleri Fakültesi",{"$f":"463/2","v":{"v":231.5,"d":"231.50"}},{"$f":"463/2","v":{"v":231.5,"d":"231.50"}},{"v":463,"d":"463.00"}]
["İnsan ve Toplum Bilimleri Fakültesi",{"$f":"463/2","v":{"v":231.5,"d":"231.50"}},{"$f":"463/2","v":{"v":231.5,"d":"231.50"}},{"v":463,"d":"463.00"},{"$f":"1670/2","v":{"v":835,"d":"835.00"}},{"$f":"1670/2","v":{"v":835,"d":"835.00"}},{"$f":"SUM(E14:F14)","v":{"v":1670,"d":"1,670.00"}}]
["Meslek Yüksekokulları",{"$f":"310/2","v":{"v":155,"d":"155.00"}},{"$f":"310/2","v":{"v":155,"d":"155.00"}},{"v":310,"d":"310.00"},{"$f":"1251/2","v":{"v":625.5,"d":"625.50"}},{"$f":"1251/2","v":{"v":625.5,"d":"625.50"}},{"$f":"SUM(E15:F15)","v":{"v":1251,"d":"1,251.00"}}]
["Lisansüstü Eğitim (Yabancı dil ile Eğitim yapanlar)",{"$f":"628.5/2","v":314.25},{"$f":"628.5/2","v":314.25},{"v":628.5,"d":"628.50"},"Üniversite Yönetim Kurulunca belirlenen saat ücreti"]
["Lisansüstü Eğitim ",{"$f":"419/2","v":{"v":209.5,"d":"209.50"}},{"$f":"419/2","v":{"v":209.5,"d":"209.50"}},{"v":419,"d":"419.00"},"Üniversite Yönetim Kurulunca belirlenen saat ücreti"]
["1- Yeni Kayıt Yaptıran Öğrenciler ve Kayıt Yenilemesi Yapacak Öğrenciler Katkı Payı/Öğrenim ücreti Ödemelerini Vakıfbank bütün Şube Veznelerinden, Vakıfbank İnternet Bankacılığı ve Vakıfbank ATM'lerinin Üniversite Ödemeleri Kısmından; ÖĞRENCİ NUMARALARINI veya T.C. Kimlik numaralarını Vererek/Girerek Yapabileceklerdir."]
["2- Katkı Payı/Öğrenim Ücreti Ödemeleri DERSE YAZILMA İŞLEMLERİ ile Bağlantılıdır. Kayıt yenilemesi yapacak ARA SINIF ÖĞRENCİLERİ Katkı Payı/Öğrenim Ücreti Ödemelerini, Tahsilat İşlemleri başlangıcından Derse Yazılmaların Son Gününe kadar Yapabilirler. Derse Yazılma İşlemlerinden sonraki yapılan/yapılacak ödemeler ise sadece MAZERETLİ KAYITLAR için geçerlidir."]
["3- DERSE YAZILMALARIN BAŞLADIĞI TARİHE kadar Katkı Payı/Öğrenim Ücretini yatıran öğrenciler DERSE YAZILMALAR AÇILDIĞINDA Ders Seçimlerini yapabilirler.\n"]
["4- Üniversitemize yeni kayıt yaptıracak veya Okudukları Programın Normal Öğrenim Süreleri İçerisinde Yer Alıp kayıt yenileme yaptıracak BİRİNCİ ÖĞRETİM Öğrencileri Katkı Payı ödemeyeceklerdir. ANCAK Programlarından program süreleri sonunda mezun olamayan birinci öğretim öğrencilerinden katkı payı ALINIR."]
["5- LİSANS TAMAMLAMA olan Birinci Öğretim Öğrencileri Program Süreleri Gözetilmeden Birinci Öğretim Katkı Payı Ücretini Öderler."]
["6-3843 Sayılı Kanunun 7 inci maddesindeki Şartları yerine getirerek, İKİNCİ Öğretimden BİRİNCİ Öğretime Geçiş Yapan Öğrenciler Birinci Öğretim Öğrencilerinin ödeyecekleri Öğrenci Katkı Payı Kadar Öğrenim Ücretini Öder."]
["7- ŞEHİT VE GAZİ ÇOCUĞU Olduğunu Askerlik şubelerinden veya Emniyet Müdürlüklerinden Alacakları Belge İle Beyan Edenler Katkı Payı / Öğrenim Ücreti Ödemezler. (Kayıt döneminde Belgelerin Aslının Getirilmesi Gerekir.)"]
["8- Devlet Yükseköğretim Kurumlarında görevli olup, birinci öğretimde lisansüstü öğrenim gören ve normal öğrenim süresinde mezun olamayan ARAŞTIRMA GÖREVLİLERİ, çalıştıkları kurumlarında alacakları Araştırma Görevlisi olduklarına dair belgeye istinaden katkı payı ödemezler."]
["9- ENGELLİ ÖĞRENCİLERDEN; Engelliler hakkında Kanun ve Özürlülük ölçütü sınıflandırılması ve özürlülere verilecek sağlık kurulu raporları hakkında yönetmelik uyarınca engelli olduğuna dair \"Sağlık Kurulu Raporu\" Getiren Öğrencilere, Ödemesi Gereken Katkı Payı/Öğrenim Ücreti Tutarından Özürlülük Oranı Kadar İndirim Yapılır. (Kayıt döneminde Sağlık Kurulu Raporu'nun aslının getirilmesi gerekir.)"]
["10- Normal program süresi içerisinde veya dışında öğrenimini tamamlamış, DERSE Bağlı Olmadan Sadece ZORUNLU YAZ STAJI kalmış öğrenciler Katkı Payı/Öğrenim Ücreti Ödemez. Ancak\" MESLEK EĞİTİMİ ile MESLEKİ UYGULAMA\" olarak DERS gören Normal Program süresini geçen Birinci Öğretim Öğrencileri ile Program süresi gözetilmeden İkinci Öğretim öğrencileri Katkı Payı/Öğrenim Ücretini Ödeyeceklerdir.\n"]
["\n11- Eğitim alacağı dönemde Tek Dersinden dolayı Derse yazılmayıp, sadece “TEK DERS SINAVINA İLK KEZ GİREN” Öğrenciler Katkı Payı/Öğrenim Ücreti Ödemez\n"]
["\n12- Yüksek lisans Öğrencisi olup, sadece DÖNMEM PROJESİ kalan öğrenciler ilgili dönemin katkı payı/öğrenim ücretini öderler.\n"]
["13- Tezsiz Yüksek lisans Öğrencileri İlk Üç Dönem ve Sonraki Dönemler için Üniversite Yönetim Kurulunun Belirlediği ÖĞRENİM ÜCRETİNİ Öderler.\n"]
["14- Başarı durumlarından dolayı ilk yüzde On’a giren ve İkinci Öğretim olarak Ücretini yatıran İKİNCİ ÖĞRETİM Öğrencilerine yapılacak İADELER, Katkı Payı ve Öğrenim Ücretinin Yatırılıp Ders Kaydının Yapılmaması, Yaz Okulunda Fazla Ders Ücreti ve Dersin Açılmaması Nedeniyle Fazla Yatırılan Ücretlerin Yanı sıra İADE Gerektirecek Nedenlerle Yapılacak Ödemelerin İadeleri İLGİLİ DÖNEM İçerisinde Yapılacaktır. DÖNEM Haricinde Yapılacak İADE Talepleri KESİNLİKLE KARŞILANMAYACAKTIR. Öğrencilerimizin yukarıda sayılan nedenlerden dolayı İADE işlemleri IBAN ile yapılacaktır."]
["15- KAYIT DONDURULARAK Geçirilen Süre (ilgili dönem/dönemler) Eğitim Süresinden Sayılmamaktadır."]
["16- KAYIT YAPTIRIP Kendi İsteği ile KAYDINI SİLDİREN Öğrencilerin Katkı Payı ve Öğrenim Ücreti Geri Ödenmez."]
["17- Öğrencilerimiz Öğrenci İşleri Dairesi Başkanlığı Web Sayfasından Yapılan DUYURULARI Takip Etmesi Gerekmektedir"]
["18. - II. ÖĞRETİMDE İlk %10’A GİREN LİSANS ve ÖNLİSANS Öğrencileri, I. Öğretim Katkı Payı Miktarı Kadar Öğrenim Ücreti Öderler"]
["19- Üniversitemize yeni kayıt yaptıracak ve halen öğrenimine devam etmekte olan İKİNCİ ÖĞRETİM öğrencileri Program Süreleri Gözetilmeden Öğrenim Ücretlerini Ödeyeceklerdir"]

{"sheet":"Sayfa2","index":1,"n_rows":0,"n_cols":0,"rows_kept":0}

{"sheet":"Sayfa3","index":2,"n_rows":0,"n_cols":0,"rows_kept":0}